[Event "December 12 Early 2023"]
[Site "https://www.chess.com"]
[Date "2023.12.12"]
[Round "10"]
[White "Tologon tegin, Semetei"]
[Black "Samunenkov, Ihor"]
[Result "0-1"]
[Board "19"]
[TimeControl "180+1"]
[WhiteFideId "13800574"]
[BlackFideId "14187086"]
[WhiteElo "2666"]
[BlackElo "2758"]
[WhiteTeam "KGZ"]
[BlackTeam "UKR"]
[WhiteClock "0:00:02"]
[BlackClock "0:00:18"]

1. d4 {[%clk 0:02:54]}  Nf6 {[%clk 0:03:00]} 2. Nc3 {[%clk 0:02:51]}  d5 {[%clk 0:02:59]} 3. Bf4 {[%clk 0:02:50]}  e6 {[%clk 0:02:59]} 4. Nb5 {[%clk 0:02:50]}  Na6 {[%clk 0:02:58]} 5. e3 {[%clk 0:02:50]}  Be7 {[%clk 0:02:58]} 6. Nf3 {[%clk 0:02:48]}  O-O {[%clk 0:02:58]} 7. h3 {[%clk 0:02:48]}  Ne4 {[%clk 0:02:49]} 8. a3 {[%clk 0:02:34]}  c6 {[%clk 0:02:44]} 9. Nc3 {[%clk 0:02:31]}  Qa5 {[%clk 0:02:35]} 10. Bxa6 {[%clk 0:01:53]}  Nxc3 {[%clk 0:02:25]} 11. Qd2 {[%clk 0:01:49]}  Qxa6 {[%clk 0:02:15]} 12. Qxc3 {[%clk 0:01:46]}  Bd7 {[%clk 0:02:03]} 13. Qd3 {[%clk 0:01:44]}  Qxd3 {[%clk 0:01:57]} 14. cxd3 {[%clk 0:01:44]}  f6 {[%clk 0:01:56]} 15. O-O {[%clk 0:01:44]}  g5 {[%clk 0:01:54]} 16. Bh2 {[%clk 0:01:43]}  Be8 {[%clk 0:01:53]} 17. Nd2 {[%clk 0:01:40]}  Bg6 {[%clk 0:01:52]} 18. e4 {[%clk 0:01:30]}  dxe4 {[%clk 0:01:46]} 19. Nxe4 {[%clk 0:01:24]}  Rfd8 {[%clk 0:01:38]} 20. Nc5 {[%clk 0:01:24]}  Bxc5 {[%clk 0:01:19]} 21. dxc5 {[%clk 0:01:25]}  e5 {[%clk 0:01:19]} 22. Rfd1 {[%clk 0:01:18]}  Bxd3 {[%clk 0:01:17]} 23. f3 {[%clk 0:01:07]}  Rd5 {[%clk 0:01:15]} 24. Bg3 {[%clk 0:01:06]}  Bc2 {[%clk 0:01:04]} 25. Rxd5 {[%clk 0:00:57]}  cxd5 {[%clk 0:01:04]} 26. Rc1 {[%clk 0:00:58]}  Ba4 {[%clk 0:01:03]} 27. b4 {[%clk 0:00:57]}  d4 {[%clk 0:01:00]} 28. Be1 {[%clk 0:00:56]}  Kf7 {[%clk 0:00:58]} 29. Kf2 {[%clk 0:00:56]}  h5 {[%clk 0:00:56]} 30. Ke2 {[%clk 0:00:55]}  h4 {[%clk 0:00:56]} 31. Kd2 {[%clk 0:00:54]}  Ke6 {[%clk 0:00:55]} 32. Bf2 {[%clk 0:00:51]}  Kd5 {[%clk 0:00:54]} 33. Kd3 {[%clk 0:00:51]}  f5 {[%clk 0:00:48]} 34. Re1 {[%clk 0:00:45]}  e4+ {[%clk 0:00:47]} 35. fxe4+ {[%clk 0:00:45]}  fxe4+ {[%clk 0:00:48]} 36. Kd2 {[%clk 0:00:43]}  e3+ {[%clk 0:00:47]} 37. Bxe3 {[%clk 0:00:43]}  dxe3+ {[%clk 0:00:48]} 38. Rxe3 {[%clk 0:00:44]}  Rf8 {[%clk 0:00:43]} 39. g3 {[%clk 0:00:39]}  Rf2+ {[%clk 0:00:30]} 40. Ke1 {[%clk 0:00:28]}  Rh2 {[%clk 0:00:29]} 41. gxh4 {[%clk 0:00:28]}  gxh4 {[%clk 0:00:30]} 42. Rf3 {[%clk 0:00:27]}  Bd7 {[%clk 0:00:28]} 43. Rf7 {[%clk 0:00:19]}  Kc6 {[%clk 0:00:26]} 44. Rf6+ {[%clk 0:00:17]}  Kc7 {[%clk 0:00:26]} 45. Rf7 {[%clk 0:00:14]}  Rxh3 {[%clk 0:00:26]} 46. b5 {[%clk 0:00:14]}  Rxa3 {[%clk 0:00:25]} 47. Rh7 {[%clk 0:00:12]}  h3 {[%clk 0:00:25]} 48. Kf2 {[%clk 0:00:11]}  Rb3 {[%clk 0:00:24]} 49. c6 {[%clk 0:00:07]}  bxc6 {[%clk 0:00:24]} 50. bxc6 {[%clk 0:00:07]}  Kxc6 {[%clk 0:00:25]} 51. Rh6+ {[%clk 0:00:07]}  Kc7 {[%clk 0:00:25]} 52. Kg1 {[%clk 0:00:08]}  Rb1+ {[%clk 0:00:23]} 53. Kh2 {[%clk 0:00:07]}  Rb2+ {[%clk 0:00:24]} 54. Kg3 {[%clk 0:00:08]}  Rg2+ {[%clk 0:00:23]} 55. Kf3 {[%clk 0:00:08]}  Bc6+ {[%clk 0:00:23]} 56. Ke3 {[%clk 0:00:08]}  h2 {[%clk 0:00:23]} 57. Kd4 {[%clk 0:00:07]}  Rd2+ {[%clk 0:00:21]} 58. Kc5 {[%clk 0:00:07]}  Rc2+ {[%clk 0:00:21]} 59. Kb4 {[%clk 0:00:06]}  h1=Q {[%clk 0:00:20]} 60. Rxc6+ {[%clk 0:00:03]}  Qxc6 {[%clk 0:00:19]} 61. Ka3 {[%clk 0:00:02]}  Qc3+ {[%clk 0:00:19]} 62. Ka4 {[%clk 0:00:02]}  Ra2+ {[%clk 0:00:18]} 63. Kb5 {[%clk 0:00:02]}  Ra5# {[%clk 0:00:18]} 0-1

[Event "December 12 Early 2023"]
[Site "https://www.chess.com"]
[Date "2023.12.12"]
[Round "10"]
[White "Zemlyanskii, Ivan"]
[Black "BestStelker"]
[Result "0-1"]
[Board "20"]
[TimeControl "180+1"]
[WhiteFideId "24249971"]
[WhiteElo "3019"]
[BlackElo "2691"]
[WhiteTeam "RUS"]
[WhiteClock "0:00:02"]
[BlackClock "0:00:06"]

1. d4 {[%clk 0:03:00]}  Nf6 {[%clk 0:03:00]} 2. c4 {[%clk 0:03:01]}  g6 {[%clk 0:02:58]} 3. h4 {[%clk 0:03:01]}  d5 {[%clk 0:02:55]} 4. cxd5 {[%clk 0:02:40]}  Bg7 {[%clk 0:02:48]} 5. Qa4+ {[%clk 0:02:14]}  Nbd7 {[%clk 0:02:43]} 6. Nc3 {[%clk 0:02:13]}  O-O {[%clk 0:02:36]} 7. e4 {[%clk 0:02:13]}  Nb6 {[%clk 0:02:27]} 8. Qd1 {[%clk 0:02:12]}  e6 {[%clk 0:02:22]} 9. dxe6 {[%clk 0:02:06]}  Bxe6 {[%clk 0:02:23]} 10. Be2 {[%clk 0:02:00]}  Re8 {[%clk 0:02:13]} 11. Be3 {[%clk 0:01:50]}  Nc4 {[%clk 0:02:07]} 12. Bxc4 {[%clk 0:01:50]}  Bxc4 {[%clk 0:02:08]} 13. f3 {[%clk 0:01:50]}  Nh5 {[%clk 0:01:55]} 14. Nge2 {[%clk 0:01:49]}  f5 {[%clk 0:01:52]} 15. e5 {[%clk 0:01:45]}  c5 {[%clk 0:01:28]} 16. f4 {[%clk 0:01:42]}  Qb6 {[%clk 0:01:12]} 17. Qa4 {[%clk 0:01:18]}  Bxe2 {[%clk 0:00:40]} 18. Nxe2 {[%clk 0:01:19]}  Qxb2 {[%clk 0:00:40]} 19. Rd1 {[%clk 0:00:47]}  b5 {[%clk 0:00:24]} 20. Qa5 {[%clk 0:00:47]}  cxd4 {[%clk 0:00:19]} 21. Bxd4 {[%clk 0:00:40]}  Qc2 {[%clk 0:00:19]} 22. Qxb5 {[%clk 0:00:34]}  Qxa2 {[%clk 0:00:11]} 23. Kf2 {[%clk 0:00:33]}  Nxf4 {[%clk 0:00:09]} 24. Rhe1 {[%clk 0:00:20]}  Qd5 {[%clk 0:00:04]} 25. Qxd5+ {[%clk 0:00:07]}  Nxd5 {[%clk 0:00:05]} 26. e6 {[%clk 0:00:04]}  Bxd4+ {[%clk 0:00:02]} 27. Rxd4 {[%clk 0:00:04]}  Nf6 {[%clk 0:00:01]} 28. Nf4 {[%clk 0:00:04]}  Ne4+ {[%clk 0:00:02]} 29. Kf3 {[%clk 0:00:03]}  Rad8 {[%clk 0:00:02]} 30. Ra4 {[%clk 0:00:02]}  Re7 {[%clk 0:00:02]} 31. Rexe4 {[%clk 0:00:02]}  fxe4+ {[%clk 0:00:02]} 32. Kxe4 {[%clk 0:00:03]}  Rd6 {[%clk 0:00:03]} 33. Ke5 {[%clk 0:00:03]}  Rb6 {[%clk 0:00:03]} 34. Kf6 {[%clk 0:00:04]}  Kf8 {[%clk 0:00:02]} 35. Rd4 {[%clk 0:00:03]}  Rb8 {[%clk 0:00:02]} 36. Ke5 {[%clk 0:00:02]}  Rb5+ {[%clk 0:00:02]} 37. Ke4 {[%clk 0:00:02]}  Rb6 {[%clk 0:00:01]} 38. Ke5 {[%clk 0:00:02]}  Rb5+ {[%clk 0:00:01]} 39. Nd5 {[%clk 0:00:02]}  Re8 {[%clk 0:00:01]} 40. Rf4+ {[%clk 0:00:03]}  Kg8 {[%clk 0:00:01]} 41. Rf7 {[%clk 0:00:03]}  Rf8 {[%clk 0:00:02]} 42. Kd6 {[%clk 0:00:01]}  Rxf7 {[%clk 0:00:02]} 43. exf7+ {[%clk 0:00:01]}  Kxf7 {[%clk 0:00:03]} 44. Ne3 {[%clk 0:00:01]}  Rb3 {[%clk 0:00:03]} 45. Nd5 {[%clk 0:00:01]}  Rb2 {[%clk 0:00:04]} 46. g4 {[%clk 0:00:02]}  a5 {[%clk 0:00:04]} 47. g5 {[%clk 0:00:02]}  Rd2 {[%clk 0:00:05]} 48. Ke5 {[%clk 0:00:02]}  Rxd5+ {[%clk 0:00:05]} 49. Kxd5 {[%clk 0:00:02]}  a4 {[%clk 0:00:06]} 0-1

[Event "December 12 Early 2023"]
[Site "https://www.chess.com"]
[Date "2023.12.12"]
[Round "10"]
[White "Nagare Kaivalya Sandip"]
[Black "Ashraf, Artin"]
[Result "0-1"]
[Board "23"]
[TimeControl "180+1"]
[WhiteFideId "25957929"]
[BlackFideId "22514805"]
[WhiteElo "2688"]
[BlackElo "2898"]
[WhiteTeam "IND"]
[BlackTeam "IRI"]
[WhiteClock "0:00:23"]
[BlackClock "0:01:43"]

1. e4 {[%clk 0:03:00]}  c5 {[%clk 0:02:58]} 2. Nf3 {[%clk 0:02:18]}  d6 {[%clk 0:02:57]} 3. d4 {[%clk 0:02:19]}  cxd4 {[%clk 0:02:58]} 4. Nxd4 {[%clk 0:02:20]}  Nf6 {[%clk 0:02:59]} 5. Nc3 {[%clk 0:02:20]}  e6 {[%clk 0:02:55]} 6. g4 {[%clk 0:02:15]}  h6 {[%clk 0:02:54]} 7. Rg1 {[%clk 0:02:15]}  a6 {[%clk 0:02:53]} 8. Be3 {[%clk 0:02:15]}  b5 {[%clk 0:02:53]} 9. Bd3 {[%clk 0:02:13]}  Bb7 {[%clk 0:02:51]} 10. f3 {[%clk 0:02:13]}  Nbd7 {[%clk 0:02:48]} 11. a4 {[%clk 0:02:08]}  b4 {[%clk 0:02:46]} 12. Nce2 {[%clk 0:02:08]}  d5 {[%clk 0:02:32]} 13. exd5 {[%clk 0:02:07]}  Nxd5 {[%clk 0:02:32]} 14. Nxe6 {[%clk 0:01:48]}  Qe7 {[%clk 0:02:07]} 15. Bd4 {[%clk 0:00:42]}  Qxe6 {[%clk 0:02:04]} 16. Bf5 {[%clk 0:00:42]}  Qc6 {[%clk 0:02:00]} 17. Kf2 {[%clk 0:00:40]}  O-O-O {[%clk 0:01:59]} 18. c4 {[%clk 0:00:39]}  Nf6 {[%clk 0:01:47]} 19. Nf4 {[%clk 0:00:34]}  Bc5 {[%clk 0:01:47]} 20. Nd5 {[%clk 0:00:33]}  Nxd5 {[%clk 0:01:45]} 21. cxd5 {[%clk 0:00:33]}  Qxd5 {[%clk 0:01:45]} 22. Rc1 {[%clk 0:00:30]}  Kb8 {[%clk 0:01:45]} 23. Bxc5 {[%clk 0:00:29]}  Nxc5 {[%clk 0:01:45]} 24. Qc2 {[%clk 0:00:23]}  Qxf3+ {[%clk 0:01:43]} 0-1

[Event "December 12 Early 2023"]
[Site "https://www.chess.com"]
[Date "2023.12.12"]
[Round "10"]
[White "Ilamparthi A R"]
[Black "DHLT216"]
[Result "0-1"]
[Board "24"]
[TimeControl "180+1"]
[WhiteFideId "45015775"]
[WhiteElo "2876"]
[BlackElo "2666"]
[WhiteTeam "IND"]
[WhiteClock "0:00:06"]
[BlackClock "0:00:04"]

1. e4 {[%clk 0:03:00]}  c5 {[%clk 0:02:34]} 2. Nf3 {[%clk 0:02:59]}  d6 {[%clk 0:02:35]} 3. d4 {[%clk 0:02:56]}  cxd4 {[%clk 0:02:36]} 4. Nxd4 {[%clk 0:02:57]}  Nf6 {[%clk 0:02:36]} 5. Nc3 {[%clk 0:02:57]}  a6 {[%clk 0:02:36]} 6. h3 {[%clk 0:02:57]}  g6 {[%clk 0:02:30]} 7. Be3 {[%clk 0:02:55]}  Bg7 {[%clk 0:02:29]} 8. Qd2 {[%clk 0:02:55]}  Nc6 {[%clk 0:02:22]} 9. O-O-O {[%clk 0:02:54]}  Bd7 {[%clk 0:02:21]} 10. Kb1 {[%clk 0:02:53]}  Rc8 {[%clk 0:02:17]} 11. Nb3 {[%clk 0:02:52]}  b5 {[%clk 0:02:06]} 12. f3 {[%clk 0:02:48]}  Ne5 {[%clk 0:01:56]} 13. h4 {[%clk 0:02:42]}  h5 {[%clk 0:01:47]} 14. Bg5 {[%clk 0:02:36]}  O-O {[%clk 0:01:34]} 15. Nd4 {[%clk 0:02:30]}  b4 {[%clk 0:01:20]} 16. Nd5 {[%clk 0:02:24]}  Nxd5 {[%clk 0:01:20]} 17. exd5 {[%clk 0:02:25]}  a5 {[%clk 0:01:17]} 18. Re1 {[%clk 0:02:18]}  Qb6 {[%clk 0:01:14]} 19. Be3 {[%clk 0:02:14]}  Qb7 {[%clk 0:01:11]} 20. g4 {[%clk 0:02:13]}  Qxd5 {[%clk 0:01:00]} 21. gxh5 {[%clk 0:02:10]}  Nxf3 {[%clk 0:00:46]} 22. Nxf3 {[%clk 0:01:58]}  Qxf3 {[%clk 0:00:46]} 23. Bd3 {[%clk 0:01:23]}  Qxh5 {[%clk 0:00:43]} 24. Bg5 {[%clk 0:01:22]}  Rfe8 {[%clk 0:00:27]} 25. Qf4 {[%clk 0:00:44]}  Qg4 {[%clk 0:00:23]} 26. Qxg4 {[%clk 0:00:37]}  Bxg4 {[%clk 0:00:24]} 27. Bxe7 {[%clk 0:00:37]}  d5 {[%clk 0:00:24]} 28. Bg5 {[%clk 0:00:34]}  Bf3 {[%clk 0:00:23]} 29. Rhf1 {[%clk 0:00:33]}  Be4 {[%clk 0:00:23]} 30. Bxe4 {[%clk 0:00:28]}  Rxe4 {[%clk 0:00:21]} 31. Rd1 {[%clk 0:00:27]}  Re2 {[%clk 0:00:22]} 32. Rxd5 {[%clk 0:00:24]}  Rcxc2 {[%clk 0:00:21]} 33. Rd8+ {[%clk 0:00:21]}  Kh7 {[%clk 0:00:21]} 34. Bc1 {[%clk 0:00:21]}  Rc7 {[%clk 0:00:15]} 35. Rd5 {[%clk 0:00:20]}  Rh2 {[%clk 0:00:14]} 36. Rxa5 {[%clk 0:00:18]}  Rxh4 {[%clk 0:00:14]} 37. Rb5 {[%clk 0:00:18]}  f5 {[%clk 0:00:13]} 38. Rb6 {[%clk 0:00:18]}  Rg4 {[%clk 0:00:12]} 39. Rh1+ {[%clk 0:00:17]}  Kg8 {[%clk 0:00:12]} 40. Rb8+ {[%clk 0:00:18]}  Kf7 {[%clk 0:00:13]} 41. Rd1 {[%clk 0:00:18]}  Bf6 {[%clk 0:00:12]} 42. Rb6 {[%clk 0:00:18]}  Kg7 {[%clk 0:00:12]} 43. Be3 {[%clk 0:00:18]}  Rg2 {[%clk 0:00:11]} 44. Rxb4 {[%clk 0:00:17]}  g5 {[%clk 0:00:09]} 45. a4 {[%clk 0:00:17]}  f4 {[%clk 0:00:09]} 46. Bb6 {[%clk 0:00:15]}  Rcc2 {[%clk 0:00:09]} 47. Bd4 {[%clk 0:00:16]}  Bxd4 {[%clk 0:00:08]} 48. Rdxd4 {[%clk 0:00:16]}  Rge2 {[%clk 0:00:08]} 49. Rb6 {[%clk 0:00:16]}  Rcd2 {[%clk 0:00:07]} 50. Rc4 {[%clk 0:00:16]}  Rd7 {[%clk 0:00:07]} 51. Rc5 {[%clk 0:00:16]}  Rg2 {[%clk 0:00:05]} 52. a5 {[%clk 0:00:15]}  f3 {[%clk 0:00:05]} 53. Rf5 {[%clk 0:00:15]}  Rf7 {[%clk 0:00:05]} 54. Rxf7+ {[%clk 0:00:14]}  Kxf7 {[%clk 0:00:06]} 55. a6 {[%clk 0:00:12]}  f2 {[%clk 0:00:06]} 56. a7 {[%clk 0:00:12]}  f1=Q+ {[%clk 0:00:06]} 57. Ka2 {[%clk 0:00:13]}  Qc4+ {[%clk 0:00:05]} 58. Rb3 {[%clk 0:00:06]}  Rg3 {[%clk 0:00:04]} 0-1

[Event "December 12 Early 2023"]
[Site "https://www.chess.com"]
[Date "2023.12.12"]
[Round "10"]
[White "Kokoszczynski, Jan"]
[Black "Mikhailovsky, Vladimir"]
[Result "0-1"]
[Board "26"]
[TimeControl "180+1"]
[WhiteFideId "1174460"]
[BlackFideId "34105414"]
[WhiteElo "2651"]
[BlackElo "2796"]
[WhiteTeam "POL"]
[BlackTeam "RUS"]
[WhiteClock "0:00:00"]
[BlackClock "0:01:10"]

1. e4 {[%clk 0:03:00]}  e5 {[%clk 0:03:00]} 2. Nf3 {[%clk 0:02:57]}  d5 {[%clk 0:03:00]} 3. d4 {[%clk 0:02:44]}  dxe4 {[%clk 0:03:00]} 4. Nxe5 {[%clk 0:02:44]}  Bd6 {[%clk 0:03:01]} 5. Nc3 {[%clk 0:02:41]}  Bxe5 {[%clk 0:03:01]} 6. dxe5 {[%clk 0:02:42]}  Qxd1+ {[%clk 0:03:02]} 7. Kxd1 {[%clk 0:02:43]}  Bf5 {[%clk 0:02:55]} 8. Bf4 {[%clk 0:02:26]}  Nc6 {[%clk 0:02:54]} 9. Bb5 {[%clk 0:02:26]}  O-O-O+ {[%clk 0:02:54]} 10. Ke1 {[%clk 0:02:14]}  Nd4 {[%clk 0:02:54]} 11. Ba4 {[%clk 0:02:15]}  Ne7 {[%clk 0:02:52]} 12. Rd1 {[%clk 0:02:02]}  Ng6 {[%clk 0:02:49]} 13. Be3 {[%clk 0:02:03]}  Ne6 {[%clk 0:02:46]} 14. Nd5 {[%clk 0:01:27]}  c6 {[%clk 0:02:33]} 15. Nc3 {[%clk 0:01:27]}  b5 {[%clk 0:02:24]} 16. Bb3 {[%clk 0:01:27]}  Kb7 {[%clk 0:02:21]} 17. a4 {[%clk 0:01:05]}  a6 {[%clk 0:02:07]} 18. axb5 {[%clk 0:00:51]}  axb5 {[%clk 0:02:08]} 19. h3 {[%clk 0:00:18]}  h5 {[%clk 0:02:07]} 20. Ke2 {[%clk 0:00:18]}  Nxe5 {[%clk 0:01:54]} 21. Ra1 {[%clk 0:00:14]}  Ra8 {[%clk 0:01:54]} 22. Rxa8 {[%clk 0:00:15]}  Rxa8 {[%clk 0:01:54]} 23. Rd1 {[%clk 0:00:15]}  Kc7 {[%clk 0:01:50]} 24. Bxe6 {[%clk 0:00:13]}  Bxe6 {[%clk 0:01:41]} 25. Bf4 {[%clk 0:00:13]}  f6 {[%clk 0:01:39]} 26. Bxe5+ {[%clk 0:00:09]}  fxe5 {[%clk 0:01:39]} 27. Nxe4 {[%clk 0:00:10]}  Ra2 {[%clk 0:01:39]} 28. Rb1 {[%clk 0:00:10]}  Bf5 {[%clk 0:01:38]} 29. Ke3 {[%clk 0:00:08]}  Kb6 {[%clk 0:01:35]} 30. f3 {[%clk 0:00:07]}  h4 {[%clk 0:01:34]} 31. Kd3 {[%clk 0:00:04]}  Ra4 {[%clk 0:01:30]} 32. b3 {[%clk 0:00:03]}  Ra2 {[%clk 0:01:17]} 33. Re1 {[%clk 0:00:02]}  b4 {[%clk 0:01:14]} 34. Kd2 {[%clk 0:00:01]}  Kb5 {[%clk 0:01:14]} 35. Re3 {[%clk 0:00:01]}  Bg6 {[%clk 0:01:10]} 36. Re2 {[%clk 0:00:01]}  c5 {[%clk 0:01:10]} 37. Nd6+ {[%clk 0:00:00]}  Kc6 {[%clk 0:01:10]} 0-1

[Event "December 12 Early 2023"]
[Site "https://www.chess.com"]
[Date "2023.12.12"]
[Round "10"]
[White "Mamedov, Edgar"]
[Black "Manukyan, Sargis A."]
[Result "1-0"]
[Board "27"]
[TimeControl "180+1"]
[WhiteFideId "13739980"]
[BlackFideId "13303970"]
[WhiteElo "2793"]
[BlackElo "2649"]
[WhiteTeam "KAZ"]
[BlackTeam "ARM"]
[WhiteClock "0:00:35"]
[BlackClock "0:00:05"]

1. d4 {[%clk 0:03:00]}  d5 {[%clk 0:03:00]} 2. Nf3 {[%clk 0:02:59]}  Nf6 {[%clk 0:02:59]} 3. a3 {[%clk 0:02:59]}  e6 {[%clk 0:02:59]} 4. g3 {[%clk 0:02:54]}  c5 {[%clk 0:02:59]} 5. dxc5 {[%clk 0:02:53]}  Bxc5 {[%clk 0:02:58]} 6. b4 {[%clk 0:02:53]}  Be7 {[%clk 0:02:45]} 7. Bb2 {[%clk 0:02:19]}  O-O {[%clk 0:02:45]} 8. Bg2 {[%clk 0:02:19]}  a5 {[%clk 0:02:44]} 9. c3 {[%clk 0:02:20]}  b5 {[%clk 0:02:33]} 10. O-O {[%clk 0:02:17]}  a4 {[%clk 0:02:31]} 11. Nd4 {[%clk 0:02:05]}  Qb6 {[%clk 0:02:31]} 12. Nd2 {[%clk 0:02:02]}  Nbd7 {[%clk 0:02:30]} 13. c4 {[%clk 0:01:56]}  bxc4 {[%clk 0:02:24]} 14. Nxc4 {[%clk 0:01:56]}  Qc7 {[%clk 0:02:12]} 15. Rc1 {[%clk 0:01:46]}  Bd8 {[%clk 0:01:45]} 16. Na5 {[%clk 0:01:41]}  Qd6 {[%clk 0:01:42]} 17. Qxa4 {[%clk 0:01:31]}  Bxa5 {[%clk 0:01:18]} 18. bxa5 {[%clk 0:01:27]}  Nb6 {[%clk 0:01:08]} 19. Qb4 {[%clk 0:01:21]}  Qxb4 {[%clk 0:00:52]} 20. axb4 {[%clk 0:01:22]}  Nc4 {[%clk 0:00:51]} 21. Rxc4 {[%clk 0:01:21]}  e5 {[%clk 0:00:35]} 22. Nc6 {[%clk 0:01:05]}  Ba6 {[%clk 0:00:26]} 23. Rc2 {[%clk 0:01:01]}  e4 {[%clk 0:00:23]} 24. Bxf6 {[%clk 0:00:58]}  gxf6 {[%clk 0:00:23]} 25. Ne7+ {[%clk 0:00:58]}  Kg7 {[%clk 0:00:23]} 26. Nxd5 {[%clk 0:00:59]}  Rfe8 {[%clk 0:00:22]} 27. Nc7 {[%clk 0:00:59]}  Rac8 {[%clk 0:00:23]} 28. Nxe8+ {[%clk 0:00:53]}  Rxe8 {[%clk 0:00:23]} 29. Rc5 {[%clk 0:00:53]}  Bxe2 {[%clk 0:00:23]} 30. Re1 {[%clk 0:00:54]}  Bd3 {[%clk 0:00:23]} 31. Rc3 {[%clk 0:00:49]}  Rb8 {[%clk 0:00:22]} 32. Bxe4 {[%clk 0:00:45]}  Bb5 {[%clk 0:00:21]} 33. Bc6 {[%clk 0:00:43]}  Ba6 {[%clk 0:00:20]} 34. b5 {[%clk 0:00:43]}  Bc8 {[%clk 0:00:20]} 35. a6 {[%clk 0:00:42]}  Bxa6 {[%clk 0:00:12]} 36. bxa6 {[%clk 0:00:41]}  h5 {[%clk 0:00:09]} 37. a7 {[%clk 0:00:41]}  Rc8 {[%clk 0:00:09]} 38. a8=Q {[%clk 0:00:40]}  Rxa8 {[%clk 0:00:09]} 39. Bxa8 {[%clk 0:00:41]}  f5 {[%clk 0:00:10]} 40. f4 {[%clk 0:00:40]}  h4 {[%clk 0:00:09]} 41. Re5 {[%clk 0:00:39]}  hxg3 {[%clk 0:00:07]} 42. hxg3 {[%clk 0:00:40]}  f6 {[%clk 0:00:07]} 43. Rxf5 {[%clk 0:00:39]}  Kg6 {[%clk 0:00:07]} 44. Be4 {[%clk 0:00:39]}  Kh6 {[%clk 0:00:08]} 45. Rxf6+ {[%clk 0:00:39]}  Kg7 {[%clk 0:00:07]} 46. Rg6+ {[%clk 0:00:39]}  Kh8 {[%clk 0:00:05]} 47. Rc8+ {[%clk 0:00:35]} 1-0

[Event "December 12 Early 2023"]
[Site "https://www.chess.com"]
[Date "2023.12.12"]
[Round "10"]
[White "Goh, Wei Ming Kevin"]
[Black "Sahib Singh"]
[Result "0-1"]
[Board "28"]
[TimeControl "180+1"]
[WhiteFideId "5800706"]
[BlackFideId "25618342"]
[WhiteElo "2772"]
[BlackElo "2641"]
[WhiteTeam "SGP"]
[BlackTeam "IND"]
[WhiteClock "0:00:00"]
[BlackClock "0:00:17"]

1. e4 {[%clk 0:02:57]}  e6 {[%clk 0:03:00]} 2. d4 {[%clk 0:02:56]}  d5 {[%clk 0:03:00]} 3. e5 {[%clk 0:02:57]}  c5 {[%clk 0:03:00]} 4. c3 {[%clk 0:02:57]}  Qb6 {[%clk 0:03:00]} 5. Nf3 {[%clk 0:02:57]}  Nc6 {[%clk 0:03:00]} 6. Bd3 {[%clk 0:02:57]}  cxd4 {[%clk 0:02:59]} 7. O-O {[%clk 0:02:57]}  Bd7 {[%clk 0:02:59]} 8. Re1 {[%clk 0:02:51]}  Nge7 {[%clk 0:02:58]} 9. h4 {[%clk 0:02:50]}  Rc8 {[%clk 0:02:42]} 10. Nbd2 {[%clk 0:02:48]}  dxc3 {[%clk 0:02:40]} 11. bxc3 {[%clk 0:02:49]}  Na5 {[%clk 0:02:40]} 12. Rb1 {[%clk 0:02:36]}  Qc7 {[%clk 0:02:41]} 13. c4 {[%clk 0:02:29]}  dxc4 {[%clk 0:02:35]} 14. Bc2 {[%clk 0:02:25]}  Nd5 {[%clk 0:02:31]} 15. Ne4 {[%clk 0:02:23]}  Be7 {[%clk 0:02:21]} 16. Nfg5 {[%clk 0:02:18]}  h6 {[%clk 0:02:20]} 17. Nxf7 {[%clk 0:02:08]}  Kxf7 {[%clk 0:02:20]} 18. Qh5+ {[%clk 0:02:08]}  Kg8 {[%clk 0:02:13]} 19. Qg6 {[%clk 0:02:03]}  Qxe5 {[%clk 0:01:56]} 20. Bb2 {[%clk 0:02:03]}  Nf4 {[%clk 0:01:17]} 21. Qg4 {[%clk 0:01:38]}  h5 {[%clk 0:01:05]} 22. Qf3 {[%clk 0:01:25]}  Qb8 {[%clk 0:01:02]} 23. Bc3 {[%clk 0:01:16]}  Nc6 {[%clk 0:00:56]} 24. Rbd1 {[%clk 0:01:00]}  Be8 {[%clk 0:00:56]} 25. Qg3 {[%clk 0:00:48]}  e5 {[%clk 0:00:52]} 26. Ng5 {[%clk 0:00:42]}  Bf6 {[%clk 0:00:46]} 27. Ne4 {[%clk 0:00:40]}  Rh6 {[%clk 0:00:43]} 28. Nd6 {[%clk 0:00:35]}  Bxh4 {[%clk 0:00:39]} 29. Qxh4 {[%clk 0:00:16]}  Rxd6 {[%clk 0:00:39]} 30. g3 {[%clk 0:00:14]}  Rxd1 {[%clk 0:00:35]} 31. Bxd1 {[%clk 0:00:14]}  Nd3 {[%clk 0:00:35]} 32. Re4 {[%clk 0:00:13]}  b5 {[%clk 0:00:29]} 33. Bxh5 {[%clk 0:00:11]}  Qd6 {[%clk 0:00:22]} 34. Rg4 {[%clk 0:00:08]}  Qe7 {[%clk 0:00:17]} 35. Qh3 {[%clk 0:00:07]}  Bd7 {[%clk 0:00:17]} 36. Bg6 {[%clk 0:00:07]}  Qf6 {[%clk 0:00:16]} 37. Qh7+ {[%clk 0:00:06]}  Kf8 {[%clk 0:00:17]} 38. Bf5 {[%clk 0:00:00]}  Bxf5 {[%clk 0:00:17]} 0-1